fUST/lending_fUST_20240321
["ID","MTS","AMOUNT","RATE_DAILY","PERIOD"]
[319772083,1710963044507,-2000.0,0.0004066,29]
[319772084,1710963044519,-2000.0,0.0004067,29]
[319772085,1710963044528,-2000.0,0.0004068,29]
[319772086,1710963044537,-2000.0,0.0004069,29]
[319772087,1710963044546,-1000.0,0.00040691,10]
[319772088,1710963044555,-2000.0,0.000407,30]
[319772089,1710963044564,-2000.0,0.000407,29]
[319772090,1710963044573,-2000.0,0.0004071,29]
[319772092,1710963044582,-2000.0,0.00040716,2]
[319772094,1710963044592,-2000.0,0.0004072,29]
[319772096,1710963044601,-382.489352,0.00040728,2]
[319772098,1710963044610,-372.239742,0.00040728,2]
[319772100,1710963044619,-195.426485,0.00040728,2]
[319772102,1710963044628,-176.434762,0.00040728,2]
[319772104,1710963044637,-2000.0,0.0004073,29]
[319772106,1710963044646,-2000.0,0.0004074,29]
[319772108,1710963044655,-2000.0,0.0004075,29]
[319772110,1710963044664,-2000.0,0.0004076,29]
[319772112,1710963044675,-2000.0,0.0004077,29]
[319772113,1710963044684,-2000.0,0.0004078,29]
[319772116,1710963044693,-2000.0,0.0004079,29]
[319772118,1710963044702,-2000.0,0.000408,29]
[319772120,1710963044711,-2000.0,0.000408,30]
[319772122,1710963044721,-2000.0,0.0004081,29]
[319772124,1710963044731,-2000.0,0.0004082,29]
[319772125,1710963044741,-2000.0,0.0004083,30]
[319772127,1710963044750,-2000.0,0.0004084,30]
[319772129,1710963044759,-2000.0,0.0004085,30]
[319772131,1710963044768,-2000.0,0.0004086,30]
[319772134,1710963044778,-2000.0,0.0004087,30]
[319772136,1710963044787,-2000.0,0.0004088,30]
[319772138,1710963044796,-2000.0,0.0004089,30]
[319772139,1710963044805,-9504.72,0.00040899,30]
[319772142,1710963044815,-2000.0,0.000409,30]
[319772144,1710963044825,-83729.62,0.000409,30]
[319772146,1710963044833,-2000.0,0.000409,30]
[319772148,1710963044842,-2000.0,0.0004091,30]
[319772150,1710963044852,-2000.0,0.0004092,30]
[319772152,1710963044860,-3254.589714,0.0004093,30]
[319772154,1710963044870,-1947.40000086,0.00040936,30]
[319772156,1710963044879,-6291.51722553,0.00040943,120]
[319772158,1710963044888,-1014.75986402,0.00040943,30]
[319772160,1710963044897,-300.0,0.00040957,30]
[319772162,1710963044907,-997.0,0.00040993,5]
[319772164,1710963044916,-1000.0,0.00041,2]
[319772166,1710963044926,-2000.0,0.00041,30]
[319772168,1710963044935,-972.56301674,0.00041,30]
[319772169,1710963044945,-2000.0,0.00041,30]
[319772172,1710963044955,-1000.0,0.00041,120]
[319772174,1710963044964,-2000.0,0.00041,120]
[319772176,1710963044973,-3006.559803,0.00041,30]
[319772178,1710963044983,-2000.0,0.00041,30]
[319772179,1710963044993,-150.181048,0.00041,2]
[319772182,1710963045003,-582.0,0.00041,30]
[319772184,1710963045015,-1749.34,0.00041,30]
[319772186,1710963045026,-1749.34,0.00041,30]
[319772188,1710963045035,-2000.0,0.0004101,30]
[319772190,1710963045044,-10000.0,0.00041017,30]
[319772192,1710963045054,-2000.0,0.0004102,30]
[319772194,1710963045063,-155.51611969,0.00041025,2]
[319772196,1710963045072,-2000.0,0.0004103,30]
[319772198,1710963045081,-2000.0,0.0004104,31]
[319772200,1710963045090,-2000.0,0.0004105,31]
[319772201,1710963045100,-2000.0,0.0004106,31]
[319772203,1710963045113,-2000.0,0.0004107,31]
[319772205,1710963045122,-2000.0,0.0004108,31]
[319772207,1710963045130,-2000.0,0.0004109,31]
[319772209,1710963045139,-500.0,0.00041095,2]
[319772211,1710963045150,-303.05659098,0.00041095,2]
[319772213,1710963045159,-1000.0,0.00041095,2]
[319772215,1710963045169,-500.0,0.00041095,2]
[319772218,1710963045178,-500.0,0.00041095,2]
[319772219,1710963045188,-500.0,0.00041095,2]
[319772222,1710963045197,-5162.37,0.00041095,7]
[319772223,1710963045206,-5162.37,0.00041095,7]
[319772225,1710963045215,-5162.37,0.00041095,7]
[319772228,1710963045225,-5162.37,0.00041095,7]
[319772230,1710963045234,-5162.37,0.00041095,7]
[319772232,1710963045243,-5162.37,0.00041095,7]
[319772236,1710963045252,-5162.37,0.00041095,7]
[319772238,1710963045284,-5162.37,0.00041095,7]
[319772240,1710963045293,-5162.37,0.00041095,7]
[319772242,1710963045302,-5162.37,0.00041095,7]
[319772244,1710963045311,-5162.37,0.00041095,7]
[319772246,1710963045319,-5162.37,0.00041095,7]
[319772248,1710963045329,-5162.37,0.00041095,7]
[319772250,1710963045338,-5162.37,0.00041095,7]
[319772252,1710963045347,-5162.37,0.00041095,7]
[319772254,1710963045356,-5162.37,0.00041095,7]
[319772256,1710963045365,-5162.37,0.00041095,7]
[319772257,1710963045374,-5162.37,0.00041095,7]
[319772259,1710963045383,-5162.37,0.00041095,7]
[319772262,1710963045393,-5162.37,0.00041095,7]
[319772263,1710963045402,-5162.37,0.00041095,7]
[319772265,1710963045411,-5162.37,0.00041095,7]
[319772267,1710963045420,-5162.37,0.00041095,7]
[319772269,1710963045431,-5162.46452,0.00041095,7]
[319772271,1710963045440,-1226.4679726,0.00041096,7]
[319772273,1710963045449,-2000.0,0.000411,31]
[319772275,1710963045458,-299.98250947,0.000411,2]
[319772277,1710963045467,-299.98250947,0.000411,2]
[319772279,1710963045476,-299.98250947,0.000411,2]
[319772281,1710963045484,-299.98250947,0.000411,2]
[319772283,1710963045494,-299.98250947,0.000411,2]
[319772285,1710963045503,-299.98250947,0.000411,2]
[319772287,1710963045514,-299.98250947,0.000411,2]
[319772289,1710963045523,-299.98250947,0.000411,2]
[319772291,1710963045532,-299.98250947,0.000411,2]
[319772293,1710963045541,-299.98250947,0.000411,2]
[319772295,1710963045550,-299.98250947,0.000411,2]
[319772297,1710963045558,-299.98250947,0.000411,2]
[319772299,1710963045568,-299.98250947,0.000411,2]
[319772301,1710963045576,-299.98250947,0.000411,2]
[319772303,1710963045585,-299.98250947,0.000411,2]
[319772305,1710963045594,-299.98250947,0.000411,2]
[319772307,1710963045604,-299.98250947,0.000411,2]
[319772309,1710963045612,-299.98250947,0.000411,2]
[319772311,1710963045622,-299.98250947,0.000411,2]
[319772313,1710963045631,-300.48,0.000411,2]
[319772315,1710963045640,-699.99252211,0.000411,2]
[319772317,1710963045649,-699.99252211,0.000411,2]
[319772319,1710963045658,-699.99252211,0.000411,2]
[319772321,1710963045667,-699.99252211,0.000411,2]
[319772323,1710963045676,-699.99252211,0.000411,2]
[319772325,1710963045688,-699.99252211,0.000411,2]
[319772327,1710963045697,-699.99252211,0.000411,2]
[319772329,1710963045707,-699.99252211,0.000411,2]
[319772331,1710963045717,-699.99252211,0.000411,2]
[319772333,1710963045726,-699.99252211,0.000411,2]
[319772335,1710963045735,-699.99252211,0.000411,2]
[319772337,1710963045744,-699.99252211,0.000411,2]
[319772339,1710963045753,-699.99252211,0.000411,2]
[319772341,1710963045764,-699.99252211,0.000411,2]
[319772343,1710963045774,-699.99252211,0.000411,2]
[319772345,1710963045783,-699.99252211,0.000411,2]
[319772347,1710963045792,-699.99252211,0.000411,2]
[319772349,1710963045801,-699.99252211,0.000411,2]
[319772351,1710963045810,-699.99252211,0.000411,2]
[319772354,1710963045819,-700.49,0.000411,2]
[319772357,1710963045828,-1510.87985,0.000411,2]
[319772360,1710963045837,-1510.87985,0.000411,2]
[319772363,1710963045847,-1510.87985,0.000411,2]
[319772366,1710963045856,-1510.87985,0.000411,2]
[319772369,1710963045866,-1510.87985,0.000411,2]
[319772372,1710963045875,-1510.87985,0.000411,2]
[319772375,1710963045884,-1510.87985,0.000411,2]
[319772378,1710963045893,-1510.87985,0.000411,2]
[319772381,1710963045903,-1510.87985,0.000411,2]
[319772384,1710963045913,-1510.87985,0.000411,2]
[319772386,1710963045923,-1510.87985,0.000411,2]
[319772388,1710963045932,-1510.87985,0.000411,2]
[319772390,1710963045941,-1510.87985,0.000411,2]
[319772392,1710963045951,-1510.87985,0.000411,2]
[319772394,1710963045960,-1510.87985,0.000411,2]
[319772397,1710963045969,-1510.87985,0.000411,2]
[319772399,1710963045979,-1510.87985,0.000411,2]
[319772401,1710963045988,-1510.87985,0.000411,2]
[319772404,1710963045998,-1510.87985,0.000411,2]
[319772406,1710963046008,-1511.37,0.000411,2]
[319772408,1710963046017,-3525.41965,0.000411,2]
[319772410,1710963046026,-3525.41965,0.000411,2]
[319772412,1710963046036,-3525.41965,0.000411,2]
[319772414,1710963046045,-3525.41965,0.000411,2]
[319772416,1710963046054,-3525.41965,0.000411,2]
[319772417,1710963046063,-3525.41965,0.000411,2]
[319772419,1710963046073,-3525.41965,0.000411,2]
[319772421,1710963046083,-3525.41965,0.000411,2]
[319772423,1710963046091,-3525.41965,0.000411,2]
[319772425,1710963046101,-3525.41965,0.000411,2]
[319772427,1710963046110,-3525.41965,0.000411,2]
[319772429,1710963046123,-3525.41965,0.000411,2]
[319772432,1710963046132,-3525.41965,0.000411,2]
[319772434,1710963046142,-3525.41965,0.000411,2]
[319772436,1710963046151,-3525.41965,0.000411,2]
[319772438,1710963046162,-3525.41965,0.000411,2]
[319772440,1710963046171,-3525.41965,0.000411,2]
[319772442,1710963046181,-3525.41965,0.000411,2]
[319772444,1710963046191,-3525.41965,0.000411,2]
[319772446,1710963046201,-3525.91,0.000411,2]
[319772448,1710963046210,-149.93436762,0.000411,2]
[319772450,1710963046219,-149.93436762,0.000411,2]
[319772452,1710963046228,-149.93436762,0.000411,2]
[319772454,1710963046238,-149.93436762,0.000411,2]
[319772456,1710963046247,-149.93436762,0.000411,2]
[319772458,1710963046256,-150.43,0.000411,2]
[319772460,1710963046266,-149.98198667,0.000411,2]
[319772462,1710963046275,-149.98198667,0.000411,2]
[319772464,1710963046284,-149.98198667,0.000411,2]
[319772466,1710963046293,-149.98198667,0.000411,2]
[319772468,1710963046302,-149.98198667,0.000411,2]
[319772470,1710963046312,-149.98198667,0.000411,2]
[319772472,1710963046321,-149.98198667,0.000411,2]
[319772473,1710963046330,-149.98198667,0.000411,2]
[319772475,1710963046339,-149.98198667,0.000411,2]
[319772476,1710963046348,-149.98198667,0.000411,2]
[319772478,1710963046358,-149.98198667,0.000411,2]
[319772480,1710963046367,-149.98198667,0.000411,2]
[319772482,1710963046376,-149.98198667,0.000411,2]
[319772484,1710963046385,-150.48,0.000411,2]
[319772486,1710963046394,-2000.0,0.0004111,31]
[319772488,1710963046403,-3701.835885,0.0004112,31]
[319772490,1710963046413,-992.16725183,0.00041128,30]
[319772493,1710963046423,-509.699525,0.00041209,30]
[319772495,1710963046432,-6250.0,0.00041553,120]
[319772497,1710963046443,-2000.0,0.000417,17]
[319772499,1710963046452,-2000.0,0.000417,17]
[319772500,1710963046461,-401.8540249,0.00041735,2]
[319772502,1710963046471,-201.4939044,0.00041735,2]
[319772504,1710963046480,-1000.0,0.00041787,30]
[319772506,1710963046489,-440.37524102,0.00042,120]
[319772508,1710963046499,-353.357896,0.0004233,30]
[319772510,1710963046508,-423.081177,0.0004233,30]
[319772514,1710963046519,-361.49643,0.0004233,30]
[319772516,1710963046529,-171.232783,0.0004233,30]
[319772518,1710963046538,-159.751251,0.0004233,30]
[319772521,1710963046548,-1000.0,0.00042335,30]
[319772524,1710963046557,-1000.0,0.00042465,5]
[319772527,1710963046567,-306.0,0.00042663,2]
[319772530,1710963046576,-306.0,0.00042663,2]
[319772532,1710963046585,-2000.0,0.000427,18]
[319772536,1710963046594,-2000.0,0.000427,18]
[319772539,1710963046603,-353.357896,0.00042859,30]
[319772542,1710963046613,-423.081177,0.00042859,30]
[319772545,1710963046623,-361.49643,0.00042859,30]
[319772548,1710963046631,-171.232783,0.00042859,30]
[319772551,1710963046641,-1000.0,0.00042883,30]
[319772554,1710963046650,-370.0,0.00043,30]
[319772556,1710963046659,-1500.0,0.00043,30]
[319772559,1710963046669,-1500.0,0.00043,30]
[319772562,1710963046678,-997.0,0.00043043,30]
[319772565,1710963046687,-306.0,0.00043105,2]
[319772568,1710963046696,-160.0,0.00043258,3]
[319772571,1710963046705,-353.357896,0.00043388,30]
[319772575,1710963046715,-423.081177,0.00043388,30]
[319772577,1710963046724,-361.49643,0.00043388,30]
[319772581,1710963046734,-171.232783,0.00043388,30]
[319772584,1710963046743,-1000.0,0.00043431,30]
[319772586,1710963046753,-2209.38520106,0.00043594,2]
[319772590,1710963046764,-169.40147414,0.00043595,4]
[319772593,1710963046774,-178.61305289,0.00043595,4]
[319772596,1710963046784,-171.35174188,0.00043595,4]
[319772599,1710963046794,-153.0,0.00043652,2]
[319772600,1710963046803,-400.0,0.000438,19]
[319772604,1710963046813,-1000.0,0.00043835,16]
[319772606,1710963046823,-353.357896,0.00043917,30]
[319772610,1710963046833,-423.081177,0.00043917,30]
[319772613,1710963046842,-361.49643,0.00043917,30]
[319772615,1710963046852,-171.232783,0.00043917,30]
[319772616,1710963046862,-441.55011569,0.00043947,5]
[319772618,1710963046871,-856.98939122,0.00043979,30]
[319772621,1710963046881,-7210.43154025,0.00044,2]
[319772623,1710963046891,-10000.0,0.00044,2]
[319772625,1710963046900,-4001.36418297,0.00044,30]
[319772627,1710963046910,-2000.0,0.00044,44]
[319772629,1710963046919,-2000.0,0.0004401,45]
[319772631,1710963046928,-2000.0,0.0004402,45]
[319772633,1710963046937,-2310.550765,0.0004403,45]
[319772635,1710963046947,-153.0,0.000442,2]
[319772637,1710963046956,-153.0,0.000442,2]
[319772639,1710963046965,-153.6106027,0.000442,2]
[319772641,1710963046974,-698.04978452,0.00044382,30]
[319772642,1710963046984,-353.357896,0.00044447,30]
[319772644,1710963046993,-423.081177,0.00044447,30]
[319772646,1710963047007,-171.232783,0.00044447,30]
[319772648,1710963047017,-361.49643,0.00044447,30]
[319772650,1710963047027,-2000.0,0.00044636,3]
[319772652,1710963047036,-160.0,0.00044975,4]
[319772654,1710963047046,-809.56545084,0.00045,20]
[319772656,1710963047055,-155.64,0.00045,7]
[319772658,1710963047064,-11045.66410363,0.00045,120]
[319772660,1710963047073,-303.0,0.00045,120]
[319772662,1710963047082,-301.0,0.00045,120]
[319772664,1710963047091,-300.0,0.00045,120]
[319772666,1710963047100,-1000.0,0.00045205,19]
[319772668,1710963047111,-153.0,0.00045377,2]
[319772670,1710963047123,-153.0,0.00045377,2]
[319772672,1710963047132,-153.0,0.00045377,2]
[319772674,1710963047141,-153.0,0.00045377,2]
[319772676,1710963047150,-153.0,0.00045377,2]
[319772678,1710963047161,-309.0887641,0.00045377,2]
[319772680,1710963047170,-199.1268229,0.00045924,2]
[319772682,1710963047179,-201.4939044,0.00045924,2]
[319772684,1710963047188,-200.4494696,0.00045924,2]
[319772686,1710963047198,-153.0,0.00045924,2]
[319772688,1710963047207,-1000.0,0.00046575,22]
[319772690,1710963047216,-160.0,0.00046693,5]
[319772692,1710963047225,-153.0,0.00046746,2]
[319772694,1710963047234,-153.0,0.00046746,2]
[319772696,1710963047243,-153.0,0.00046746,2]
[319772698,1710963047252,-153.0,0.00046746,2]
[319772700,1710963047261,-310.0871828,0.00046746,2]
[319772702,1710963047272,-17996.00678912,0.00047,4]
[319772704,1710963047282,-6250.0,0.00047489,120]
[319772706,1710963047291,-1000.0,0.00047945,25]
[319772708,1710963047302,-5126.4372909,0.00048,2]
[319772710,1710963047312,-160.0,0.0004841,6]
[319772712,1710963047321,-2000.0,0.000487,26]
[319772714,1710963047330,-2000.0,0.000487,26]
[319772715,1710963047339,-46358.63870845,0.00049,120]
[319772717,1710963047349,-800.0,0.00049,90]
[319772720,1710963047359,-2000.0,0.00049,68]
[319772722,1710963047368,-3263.348818,0.0004901,68]
[319772723,1710963047378,-1000.0,0.00049315,28]
[319772725,1710963047387,-2000.0,0.00049517,3]
[319772727,1710963047396,-2000.0,0.000497,27]
[319772729,1710963047406,-2000.0,0.000497,27]
[319772731,1710963047415,-400.0,0.000499,27]
[319772734,1710963047425,-504.92602275,0.0005,10]
[319772735,1710963047434,-105343.77440853,0.0005,2]
[319772737,1710963047443,-1000.0,0.0005,30]
[319772739,1710963047453,-132147.96136752,0.0005,2]
[319772789,1710963047941,-489.9999995,0.0005,2]
[319772865,1710963048878,-154.87609912,0.00020803,2]
[319772866,1710963048888,-500.0,0.00024657,2]
[319772867,1710963048898,-359.91240088,0.00024657,2]
[319772868,1710963048911,-141.29026152,0.00024657,2]
[319772869,1710963048920,-500.0,0.00024931,2]
[319772870,1710963048931,-500.0,0.00025205,2]
[319772871,1710963048940,-286.50523909,0.00025206,2]
[319772873,1710963048950,-500.0,0.00025479,2]
[319772875,1710963048959,-286.50523909,0.00025567,2]
[319772876,1710963048969,-500.0,0.00025753,2]
[319772878,1710963048980,-286.50523909,0.00025927,2]
[319772880,1710963048990,-500.0,0.00026027,2]
[319772882,1710963049000,-500.0,0.00026301,2]
[319772884,1710963049010,-500.0,0.00026575,2]
[319772886,1710963049021,-500.0,0.00040025,120]
[319772888,1710963049031,-500.0,0.00040025,120]
[319772890,1710963049041,-500.0,0.00040025,120]
[319772892,1710963049050,-552.24,0.00040025,120]
[319772894,1710963049059,-17161.4711409,0.0005,2]
[319772899,1710963049091,-500.0,0.00026849,2]
[319772901,1710963049101,-500.0,0.00027123,2]
[319772902,1710963049110,-16.58646786,0.00027397,2]
[319772905,1710963049125,-275.71842074,0.00027397,2]
[319773072,1710963050818,-1.6654535,0.00024655,2]
[319786278,1710964232533,-154.87609912,0.00022083,2]
[319786280,1710964232542,-154.87609912,0.00022083,2]
[319786282,1710964232552,-1618.00449362,0.00022084,2]
[319786284,1710964232561,-683.2104041,0.00022085,2]
[319786286,1710964232571,-187.57184153,0.00022086,2]
[319786288,1710964232581,-6732.9872,0.00022088,2]
[319786290,1710964232590,-336.61028602,0.00022093,2]
[319786291,1710964232599,-876.45467613,0.00022386,2]
[319786293,1710964232608,-519.863248,0.00022387,2]
[319786295,1710964232617,-329.1418424,0.00023134,2]
[319786297,1710964232626,-183.76914639,0.00023158,2]
[319786299,1710964232636,-1609.06716003,0.00023256,2]
[319786301,1710964232645,-500.0,0.00023256,2]
[319786303,1710964232655,-474.0140401,0.00023256,2]
[319786305,1710964232665,-500.0,0.00023256,2]
[319786308,1710964232676,-288.31453832,0.00023256,2]
[319786310,1710964232686,-322.50861399,0.00023257,2]
[319786313,1710964232695,-154836.10211197,0.00023257,2]
[319786315,1710964232704,-24900.0,0.00023258,2]
[319786317,1710964232713,-179.25533772,0.00023583,2]
[319786319,1710964232723,-10006.58388561,0.00023683,2]
[319786321,1710964232732,-494.44138683,0.00024457,2]
[319786323,1710964232741,-12113.3415582,0.00024557,2]
[319786325,1710964232750,-154.87609912,0.00024655,2]
[319786327,1710964232759,-687.77022552,0.00024655,2]
[319786329,1710964232768,-155.12664403,0.00024655,2]
[319786331,1710964232777,-239.09546587,0.00024656,2]
[319786333,1710964232786,-605.26,0.00024657,2]
[319786335,1710964232795,-500.0,0.00024657,2]
[319786337,1710964232804,-500.0,0.00024657,2]
[319786339,1710964232812,-473.44998683,0.00024657,2]
[319786341,1710964232821,-500.3493261,0.00024657,2]
[319786343,1710964232829,-500.0,0.00024657,2]
[319786345,1710964232838,-3108.96818926,0.00024795,5]
[319786346,1710964232847,-305.25781823,0.00024931,2]
[319786348,1710964232856,-500.0,0.00024931,2]
[319786350,1710964232866,-500.0,0.00025122,2]
[319786352,1710964232875,-500.0,0.00025205,2]
[319786354,1710964232884,-500.0,0.00025479,2]
[319786356,1710964232893,-500.0,0.00025753,2]
[319786358,1710964232902,-500.0,0.00026027,2]
[319786360,1710964232913,-500.0,0.00026301,2]
[319786362,1710964232922,-3504.14814187,0.00027395,2]
[319786363,1710964232931,-154.99995046,0.00027395,2]
[319786365,1710964232942,-331.89131947,0.00027395,2]
[319786367,1710964232951,-157.44716261,0.00027395,2]
[319786369,1710964232960,-404.89614019,0.00027395,2]
[319786371,1710964232969,-269.83823354,0.00027396,2]
[319786373,1710964232978,-154.96897834,0.00027396,2]
[319786374,1710964232987,-322.24062299,0.00027396,2]
[319786376,1710964232997,-1961.96826851,0.00027396,2]
[319786378,1710964233006,-500.0,0.00027396,2]
[319786380,1710964233015,-500.0,0.00027396,2]
[319786381,1710964233024,-500.0,0.00027396,2]
[319786383,1710964233033,-500.0,0.00027396,2]
[319786385,1710964233043,-500.0,0.00027396,2]
[319786386,1710964233052,-500.0,0.00027396,2]
[319786388,1710964233061,-500.0,0.00027396,2]
[319786390,1710964233070,-500.0,0.00027396,2]
[319786392,1710964233080,-500.0,0.00027396,2]
[319786394,1710964233089,-155.0,0.00027397,2]
[319786396,1710964233098,-166.666666,0.00027397,2]
[319786398,1710964233108,-500.0,0.0002767,2]
[319786400,1710964233117,-500.0,0.0002767,2]
[319786402,1710964233126,-500.0,0.0002767,2]
[319786405,1710964233136,-500.0,0.0002767,2]
[319786407,1710964233158,-450.0123253,0.0002767,2]
[319786409,1710964233173,-500.0,0.0002767,2]
[319786411,1710964233184,-270.74461353,0.0002767,2]
[319786426,1710964233339,-229.25538647,0.0002767,2]
[319786427,1710964233350,-500.0,0.00027944,2]
[319786429,1710964233360,-500.0,0.00027944,2]
[319786431,1710964233369,-500.0,0.00027944,2]
[319786432,1710964233378,-500.0,0.00027944,2]
[319786434,1710964233388,-166.666666,0.00028038,2]
[319786435,1710964233398,-644.16,0.00028218,2]
[319786437,1710964233407,-500.0,0.00028218,2]
[319786439,1710964233424,-500.0,0.00028218,2]
[319786441,1710964233434,-500.0,0.00028218,2]
[319786443,1710964233444,-500.0,0.00028492,2]
[319786445,1710964233455,-500.0,0.00028492,2]
[319786447,1710964233467,-500.0,0.00028492,2]
[319786449,1710964233477,-166.666666,0.00028679,2]
[319786451,1710964233487,-365.77262756,0.00028766,2]
[319786464,1710964233622,-134.22737244,0.00028766,2]
[319786466,1710964233633,-500.0,0.00028766,2]
[319786468,1710964233643,-500.0,0.00028766,2]
[319786470,1710964233653,-500.0,0.0002904,2]
[319786471,1710964233666,-500.0,0.0002904,2]
[319786473,1710964233677,-500.0,0.0002904,2]
[319786475,1710964233686,-750.24,0.0002917,2]
[319786478,1710964233696,-2000.0,0.00029194,2]
[319786480,1710964233705,-2000.0,0.00029293,2]
[319786481,1710964233715,-500.0,0.00029314,2]
[319786483,1710964233724,-500.0,0.00029314,2]
[319786485,1710964233733,-500.0,0.00029314,2]
[319786487,1710964233743,-166.666666,0.00029321,2]
[319786490,1710964233753,-2000.0,0.00029392,2]
[319786491,1710964233762,-2000.0,0.00029491,2]
[319786493,1710964233772,-500.0,0.00029588,2]
[319786495,1710964233781,-500.0,0.00029588,2]
[319786497,1710964233790,-500.0,0.00029588,2]
[319786499,1710964233799,-3195.614577,0.0002959,2]
[319786501,1710964233808,-500.0,0.00029862,2]
[319786503,1710964233817,-500.0,0.00029862,2]
[319786505,1710964233827,-500.0,0.00029862,2]
[319786507,1710964233837,-7748.43606094,0.0002988,2]
[319786509,1710964233846,-166.666666,0.00029962,2]
[319786511,1710964233855,-404.98895954,0.0003,3]
[319786513,1710964233864,-597.80075257,0.0003,2]
[319786515,1710964233874,-189.0,0.0003,2]
[319786517,1710964233883,-641.25091115,0.0003,4]
[319786519,1710964233893,-500.0,0.00030136,2]
[319786521,1710964233902,-588.39617168,0.00030136,2]
[319786523,1710964233917,-6.10382832,0.00030136,2]
[319786525,1710964233927,-500.0,0.00030136,2]
[319786527,1710964233936,-194.35359503,0.00030363,2]
[319786529,1710964233946,-500.0,0.0003041,2]
[319786531,1710964233955,-500.0,0.0003041,2]
[319786533,1710964233965,-166.666666,0.00030603,2]
[319786535,1710964233974,-500.0,0.00030684,2]
[319786537,1710964233983,-639.04413081,0.00030684,2]
[319786539,1710964233992,-500.0,0.00030958,2]
[319786541,1710964234002,-500.0,0.00031232,2]
[319786543,1710964234011,-500.0,0.00031506,2]
[319786545,1710964234020,-500.0,0.0003178,2]
[319786547,1710964234031,-500.0,0.00031998,2]
[319786549,1710964234040,-500.0,0.00031998,2]
[319786551,1710964234050,-500.0,0.00031998,2]
[319786553,1710964234061,-500.0,0.00031998,2]
[319786555,1710964234071,-483.6476939,0.00031998,2]
[319786557,1710964234081,-500.0,0.00031998,2]
[319786558,1710964234091,-605.13,0.00031998,2]
[319786560,1710964234100,-500.0,0.00031998,2]
[319786562,1710964234110,-500.0,0.00031998,2]
[319786564,1710964234119,-500.0,0.00031998,2]
[319786566,1710964234128,-500.0,0.00031998,2]
[319786568,1710964234138,-500.0,0.00031998,2]
[319786570,1710964234147,-500.0,0.00031998,2]
[319786572,1710964234157,-3301.62259203,0.00032,2]
[319786574,1710964234169,-427.74,0.00032054,2]
[319786576,1710964234178,-500.0,0.00032272,2]
[319786578,1710964234187,-201.8,0.00032272,2]
[319786580,1710964234197,-500.0,0.00032272,2]
[319786582,1710964234206,-184.31,0.00032272,2]
[319786584,1710964234215,-500.0,0.00032272,2]
[319786600,1710964234352,-500.0,0.00032272,2]
[319786602,1710964234367,-500.0,0.00032546,2]
[319786604,1710964234376,-500.0,0.00032546,2]
[319786606,1710964234386,-500.0,0.00032546,2]
[319786608,1710964234395,-500.0,0.00032546,2]
[319786610,1710964234405,-500.0,0.0003282,2]
[319786612,1710964234415,-500.0,0.0003282,2]
[319786614,1710964234425,-500.0,0.0003282,2]
[319786616,1710964234434,-500.0,0.0003282,2]
[319786618,1710964234443,-500.0,0.00033094,2]
[319786620,1710964234453,-500.0,0.00033094,2]
[319786622,1710964234464,-384.5,0.00033094,2]
[319786624,1710964234474,-500.0,0.00033094,2]
[319786626,1710964234483,-500.0,0.00033368,2]
[319786628,1710964234492,-500.0,0.00033368,2]
[319786630,1710964234501,-500.0,0.00033368,2]
[319786631,1710964234511,-519.863248,0.00033581,2]
[319786634,1710964234522,-300.72,0.00033642,2]